[Event "13th Senioren-Cup Tegernsee 2025"]
[Site "Rottach-Egern"]
[Date "2025.03.31"]
[Round "3.1"]
[White "Schneider-Zinner, Harald"]
[Black "Schulz, Michael"]
[Result "1-0"]
[Annotator "RC"]
[ECO "D30"]
[WhiteElo "2327"]
[BlackElo "2070"]
[PlyCount "49"]
[EventDate "2025.03.25"]
[EventType "swiss"]
[EventCountry "GER"]
[SourceTitle "playchess.com"]
[Source "ChessBase"]
[SourceQuality "1"]
[TimeControl "9000+30"]

1. Nf3 {[%emt 0:20:04]} d5 {[%emt 0:21:44]} 2. c4 {[%emt 0:01:10]} c6 {[%emt 0:00:42]} 3. d4 {[%emt 0:01:02]} e6 {[%emt 0:00:29]} 4. Qc2 {[%emt 0:02:16]} Bd6 {[%emt 0:00:55]} 5. Bg5 {[%emt 0:08:47]} Ne7 {[%emt 0:01:47]} 6. e3 {[%emt 0:00:13]} f6 {[%emt 0:02:20]} 7. Bh4 {[%emt 0:00:23]} Nd7 {[%emt 0:04:25]} 8. Bg3 {[%emt 0:04:14]} e5 {[%emt 0:02:41]} 9. Nc3 {[%emt 0:03:58]} Qa5 {[%emt 0:13:12]} 10. Bd3 {[%emt 0:10:07]} dxc4 {[%emt 0:01:28]} 11. Bxc4 {[%emt 0:01:07]} Nd5 {[%emt 0:07:07]} 12. Bxd5 {[%emt 0:08:03]} cxd5 {[%emt 0:00:09]} 13. Rd1 {[%emt 0:01:51]} O-O {[%emt 0:07:44]} 14. O-O {[%emt 0:05:42]} Nb6 {[%emt 0:08:59]} 15. dxe5 {[%emt 0:01:54]} Bb4 {[%emt 0:04:16]} 16. exf6 {[%emt 0:08:50]} Rxf6 {[%emt 0:01:07]} 17. Be5 {[%emt 0:04:03]} Rc6 {[%emt 0:08:25]} 18. Qb3 {[%emt 0:03:26]} Bxc3 {[%emt 0:03:39]} 19. Bxc3 {[%emt 0:00:07]} Qc5 {[%emt 0:01:41]} 20. Bd4 {[%emt 0:02:04]} Qe7 {[%emt 0:01:08]} 21. Bxb6 {[%emt 0:02:48]} Rxb6 {[%emt 0:02:33]} 22. Qxd5+ {[%emt 0:00:35]} Be6 {[%emt 0:00:23]} 23. Qe5 {[%emt 0:00:27]} Qb4 {[%emt 0:00:51]} 24. b3 {[%emt 0:03:26]} Rc8 {[%emt 0:05:14]} 25. Ng5 {[%emt 0:04:54]} 1-0

[Event "13th Senioren-Cup Tegernsee 2025"]
[Site "Rottach-Egern"]
[Date "2025.03.31"]
[Round "3.2"]
[White "Belke, Frank"]
[Black "Templin, Klaus Dieter"]
[Result "1-0"]
[Annotator "RC"]
[ECO "D92"]
[WhiteElo "2235"]
[BlackElo "2039"]
[PlyCount "87"]
[EventDate "2025.03.25"]
[EventType "swiss"]
[EventCountry "GER"]
[SourceTitle "playchess.com"]
[Source "ChessBase"]
[SourceQuality "1"]
[TimeControl "9000+30"]

1. d4 {[%emt 0:20:03]} Nf6 {[%emt 0:20:29]} 2. c4 {[%emt 0:00:03]} g6 {[%emt 0:00:36]} 3. Nc3 {[%emt 0:00:05]} d5 {[%emt 0:01:01]} 4. Nf3 {[%emt 0:00:05]} Bg7 {[%emt 0:00:16]} 5. Bf4 {[%emt 0:00:05]} O-O {[%emt 0:01:20]} 6. Rc1 {[%emt 0:00:09]} dxc4 {[%emt 0:05:40]} 7. e4 {[%emt 0:00:16]} a6 {[%emt 0:01:42]} 8. Bxc4 {[%emt 0:01:19]} Bg4 {[%emt 0:08:22]} 9. Be2 {[%emt 0:08:23]} c5 {[%emt 0:07:32]} 10. d5 {[%emt 0:01:19]} Nbd7 {[%emt 0:06:45]} 11. h3 {[%emt 0:00:41]} Bxf3 {[%emt 0:00:32]} 12. Bxf3 {[%emt 0:00:02]} Ne8 {[%emt 0:00:43]} 13. O-O {[%emt 0:00:34]} Ne5 {[%emt 0:00:29]} 14. Be2 {[%emt 0:00:07]} Nd6 {[%emt 0:05:07]} 15. Bg3 {[%emt 0:05:51]} b5 {[%emt 0:06:22]} 16. Qc2 {[%emt 0:14:18]} f5 {[%emt 0:04:15]} 17. f3 {[%emt 0:01:53]} Nec4 {[%emt 0:06:35]} 18. Bxc4 {[%emt 0:05:13]} Nxc4 {[%emt 0:00:39]} 19. Rce1 {[%emt 0:00:50]} f4 {[%emt 0:03:36]} 20. Bf2 {[%emt 0:00:57]} Rc8 {[%emt 0:00:19]} 21. Nd1 {[%emt 0:06:06]} Qd6 {[%emt 0:01:05]} 22. a4 {[%emt 0:11:09]} Ne5 {[%emt 0:01:28]} 23. axb5 {[%emt 0:00:38]} axb5 {[%emt 0:00:11]} 24. Nc3 {[%emt 0:01:42]} Qd7 {[%emt 0:05:44]} 25. Ra1 {[%emt 0:02:30]} Nc4 {[%emt 0:05:47]} 26. Rfb1 {[%emt 0:05:36]} Bd4 {[%emt 0:05:16]} 27. Ne2 {[%emt 0:05:35]} Bxf2+ {[%emt 0:06:02]} 28. Kxf2 {[%emt 0:00:01]} Ne5 {[%emt 0:11:39]} 29. Qc3 {[%emt 0:05:27]} Qd6 {[%emt 0:01:15]} 30. Ra7 {[%emt 0:06:04]} b4 {[%emt 0:00:51]} 31. Qd2 {[%emt 0:00:30]} Rc7 {[%emt 0:03:48]} 32. Rxc7 {[%emt 0:07:12]} Qxc7 {[%emt 0:00:04]} 33. Kg1 {[%emt 0:00:03]} g5 {[%emt 0:03:31]} 34. b3 {[%emt 0:02:07]} h5 {[%emt 0:01:25]} 35. Kh1 {[%emt 0:02:38]} Qd6 {[%emt 0:06:48]} 36. Ra1 {[%emt 0:00:49]} g4 {[%emt 0:05:23]} 37. Ng1 {[%emt 0:00:30]} Qd7 {[%emt 0:06:08]} 38. Ra6 {[%emt 0:01:24]} Kh7 {[%emt 0:04:57]} 39. Re6 {[%emt 0:01:40]} Qc7 {[%emt 0:02:30]} 40. fxg4 {[%emt 0:03:35]} hxg4 {[%emt 0:01:26]} 41. Qe1 {[%emt 0:00:22]} Ng6 {[%emt 0:01:12]} 42. e5 {[%emt 0:00:57]} f3 {[%emt 0:07:04]} 43. gxf3 {[%emt 0:01:26]} gxf3 {[%emt 0:00:27]} 44. Qe4 {[%emt 0:00:45]} 1-0

[Event "13th Senioren-Cup Tegernsee 2025"]
[Site "Rottach-Egern"]
[Date "2025.03.31"]
[Round "3.3"]
[White "Oechslein, Rainer"]
[Black "Hess, Christian"]
[Result "0-1"]
[Annotator "RC"]
[ECO "C13"]
[WhiteElo "2070"]
[BlackElo "2168"]
[PlyCount "126"]
[EventDate "2025.03.25"]
[EventType "swiss"]
[EventCountry "GER"]
[SourceTitle "playchess.com"]
[Source "ChessBase"]
[SourceQuality "1"]
[TimeControl "9000+30"]

1. e4 {[%emt 0:20:04]} e6 {[%emt 0:20:37]} 2. d4 {[%emt 0:00:05]} d5 {[%emt 0:00:02]} 3. Nc3 {[%emt 0:00:07]} Nf6 {[%emt 0:00:27]} 4. Bg5 {[%emt 0:00:25]} dxe4 {[%emt 0:00:41]} 5. Nxe4 {[%emt 0:00:08]} Be7 {[%emt 0:00:09]} 6. Bxf6 {[%emt 0:00:05]} Bxf6 {[%emt 0:01:05]} 7. Nf3 {[%emt 0:00:06]} O-O {[%emt 0:00:36]} 8. Qd2 {[%emt 0:03:04]} Nd7 {[%emt 0:01:07]} 9. O-O-O {[%emt 0:01:00]} b6 {[%emt 0:02:17]} 10. Bd3 {[%emt 0:01:07]} Bb7 {[%emt 0:00:52]} 11. Qf4 {[%emt 0:04:31]} Be7 {[%emt 0:04:52]} 12. Kb1 {[%emt 0:03:26]} c5 {[%emt 0:09:47]} 13. dxc5 {[%emt 0:04:10]} Qb8 {[%emt 0:06:18]} 14. Qxb8 {[%emt 0:04:37]} Raxb8 {[%emt 0:01:40]} 15. cxb6 {[%emt 0:01:38]} Nxb6 {[%emt 0:00:14]} 16. Rhe1 {[%emt 0:05:40]} Na4 {[%emt 0:21:19]} 17. Bb5 {[%emt 0:12:54]} Nxb2 {[%emt 0:03:07]} 18. Rd7 {[%emt 0:12:19]} Bxe4 {[%emt 0:31:58]} 19. Rxe4 {[%emt 0:02:02]} Bf6 {[%emt 0:11:08]} 20. Rb4 {[%emt 0:05:46]} a5 {[%emt 0:09:04]} 21. Rb3 {[%emt 0:07:17]} a4 {[%emt 0:04:34]} 22. Rxb2 {[%emt 0:00:03]} Bxb2 {[%emt 0:00:09]} 23. c4 {[%emt 0:01:13]} a3 {[%emt 0:01:38]} 24. Kc2 {[%emt 0:00:47]} Rfc8 {[%emt 0:03:03]} 25. Kb3 {[%emt 0:00:39]} Rd8 {[%emt 0:01:47]} 26. Rxd8+ {[%emt 0:00:19]} Rxd8 {[%emt 0:00:02]} 27. c5 {[%emt 0:00:13]} Rc8 {[%emt 0:08:17]} 28. Kc4 {[%emt 0:00:40]} Kf8 {[%emt 0:00:58]} 29. Bd7 {[%emt 0:00:54]} Rc7 {[%emt 0:00:20]} 30. c6 {[%emt 0:00:07]} Ke7 {[%emt 0:03:19]} 31. Nd2 {[%emt 0:02:20]} f5 {[%emt 0:01:22]} 32. Kb3 {[%emt 0:00:14]} e5 {[%emt 0:02:33]} 33. f3 {[%emt 0:00:17]} Bc1 {[%emt 0:00:28]} 34. Nc4 {[%emt 0:00:38]} e4 {[%emt 0:00:18]} 35. fxe4 {[%emt 0:00:18]} fxe4 {[%emt 0:00:02]} 36. Kc2 {[%emt 0:00:44]} Bf4 {[%emt 0:00:42]} 37. g3 {[%emt 0:00:58]} Bd6 {[%emt 0:00:24]} 38. Nb6 {[%emt 0:01:57]} Kd8 {[%emt 0:02:30]} 39. Nd5 {[%emt 0:13:55]} Ra7 {[%emt 0:00:30]} 40. Bf5 {[%emt 0:00:54]} Ra5 {[%emt 0:02:04]} 41. Bxe4 {[%emt 0:00:18]} Rc5+ {[%emt 0:00:22]} 42. Kd3 {[%emt 0:00:49]} Rxc6 {[%emt 0:00:30]} 43. Bxh7 {[%emt 0:04:15]} Rc1 {[%emt 0:00:14]} 44. Ne3 {[%emt 0:02:11]} Rh1 {[%emt 0:01:14]} 45. Ng4 {[%emt 0:02:12]} Bxg3 {[%emt 0:04:28]} 46. Be4 {[%emt 0:00:18]} Rd1+ {[%emt 0:00:11]} 47. Ke2 {[%emt 0:02:51]} Re1+ {[%emt 0:00:44]} 48. Kf3 {[%emt 0:00:07]} Bd6 {[%emt 0:00:24]} 49. Bd5 {[%emt 0:01:47]} Rd1 {[%emt 0:00:41]} 50. Bg8 {[%emt 0:02:48]} Rd3+ {[%emt 0:00:47]} 51. Kg2 {[%emt 0:00:28]} Kc7 {[%emt 0:00:34]} 52. Be6 {[%emt 0:00:45]} Kb6 {[%emt 0:00:27]} 53. Kf2 {[%emt 0:01:34]} Kc5 {[%emt 0:00:37]} 54. Ke2 {[%emt 0:00:31]} Rh3 {[%emt 0:00:54]} 55. Kf2 {[%emt 0:00:30]} Rc3 {[%emt 0:00:26]} 56. Kg2 {[%emt 0:00:35]} Kb4 {[%emt 0:00:28]} 57. Kg1 {[%emt 0:01:14]} Rd3 {[%emt 0:01:02]} 58. Kg2 {[%emt 0:00:26]} Kc3 {[%emt 0:00:13]} 59. Nf2 {[%emt 0:00:18]} Rd2 {[%emt 0:00:19]} 60. Kf3 {[%emt 0:00:08]} Rd4 {[%emt 0:00:50]} 61. h3 {[%emt 0:00:31]} Kb2 {[%emt 0:00:25]} 62. Ke3 {[%emt 0:00:19]} Rh4 {[%emt 0:01:08]} 63. Ne4 {[%emt 0:01:16]} Rh6 {[%emt 0:00:39]} 0-1

[Event "13th Senioren-Cup Tegernsee 2025"]
[Site "Rottach-Egern"]
[Date "2025.03.31"]
[Round "3.4"]
[White "Cordts, Ingo"]
[Black "Ernst, Michael"]
[Result "1-0"]
[Annotator "RC"]
[ECO "D23"]
[WhiteElo "2151"]
[BlackElo "2035"]
[PlyCount "102"]
[EventDate "2025.03.25"]
[EventType "swiss"]
[EventCountry "GER"]
[SourceTitle "playchess.com"]
[Source "ChessBase"]
[SourceQuality "1"]
[TimeControl "9000+30"]

1. Nf3 {[%emt 0:20:03]} d5 {[%emt 0:20:11]} 2. d4 {[%emt 0:00:23]} Nf6 {[%emt 0:00:19]} 3. c4 {[%emt 0:00:07]} c6 {[%emt 0:02:15]} 4. Qc2 {[%emt 0:01:48]} dxc4 {[%emt 0:00:42]} 5. Qxc4 {[%emt 0:02:17]} Bf5 {[%emt 0:00:20]} 6. Nc3 {[%emt 0:01:00]} e6 {[%emt 0:00:15]} 7. g3 {[%emt 0:00:19]} h6 {[%emt 0:02:50]} 8. Bg2 {[%emt 0:00:43]} Nbd7 {[%emt 0:00:46]} 9. O-O {[%emt 0:02:45]} Be7 {[%emt 0:02:31]} 10. e3 {[%emt 0:00:40]} O-O {[%emt 0:00:30]} 11. Qe2 {[%emt 0:00:20]} Ne4 {[%emt 0:02:39]} 12. Nd2 {[%emt 0:06:15]} Nxd2 {[%emt 0:04:26]} 13. Bxd2 {[%emt 0:00:49]} e5 {[%emt 0:06:38]} 14. d5 {[%emt 0:08:07]} cxd5 {[%emt 0:04:42]} 15. Nxd5 {[%emt 0:01:48]} Nf6 {[%emt 0:06:48]} 16. Nxe7+ {[%emt 0:03:49]} Qxe7 {[%emt 0:00:24]} 17. Qb5 {[%emt 0:07:13]} Rfd8 {[%emt 0:07:51]} 18. Bb4 {[%emt 0:03:35]} Qe8 {[%emt 0:04:42]} 19. Qxe8+ {[%emt 0:02:19]} Rxe8 {[%emt 0:05:08]} 20. Rfc1 {[%emt 0:03:54]} Be4 {[%emt 0:03:26]} 21. Bxe4 {[%emt 0:03:14]} Nxe4 {[%emt 0:00:04]} 22. Rc7 {[%emt 0:01:05]} a5 {[%emt 0:00:38]} 23. Be7 {[%emt 0:03:11]} b6 {[%emt 0:08:08]} 24. Rd1 {[%emt 0:05:50]} Rec8 {[%emt 0:05:12]} 25. Rxc8+ {[%emt 0:05:58]} Rxc8 {[%emt 0:00:25]} 26. Rd8+ {[%emt 0:01:03]} Rxd8 {[%emt 0:00:02]} 27. Bxd8 {[%emt 0:00:05]} Nc5 {[%emt 0:04:33]} 28. Bxb6 {[%emt 0:01:23]} Na4 {[%emt 0:00:31]} 29. Bxa5 {[%emt 0:01:15]} Nxb2 {[%emt 0:00:03]} 30. e4 {[%emt 0:04:07]} f6 {[%emt 0:01:50]} 31. Kf1 {[%emt 0:03:01]} Kf7 {[%emt 0:00:29]} 32. Ke2 {[%emt 0:00:37]} h5 {[%emt 0:00:45]} 33. Bc3 {[%emt 0:03:27]} Na4 {[%emt 0:00:05]} 34. Kd3 {[%emt 0:02:42]} Nc5+ {[%emt 0:00:35]} 35. Ke3 {[%emt 0:00:14]} Ke6 {[%emt 0:00:17]} 36. f4 {[%emt 0:02:07]} exf4+ {[%emt 0:03:59]} 37. gxf4 {[%emt 0:00:36]} g6 {[%emt 0:02:09]} 38. Bd4 {[%emt 0:04:06]} Na6 {[%emt 0:01:07]} 39. a4 {[%emt 0:01:23]} Nb4 {[%emt 0:00:47]} 40. a5 {[%emt 0:03:35]} f5 {[%emt 0:07:13]} 41. Bc3 {[%emt 0:02:33]} Na6 {[%emt 0:00:41]} 42. Kd4 {[%emt 0:03:23]} fxe4 {[%emt 0:00:58]} 43. Kxe4 {[%emt 0:03:03]} Nb8 {[%emt 0:03:21]} 44. Kd4 {[%emt 0:03:36]} Kf5 {[%emt 0:01:51]} 45. Kd5 {[%emt 0:02:17]} h4 {[%emt 0:02:52]} 46. h3 {[%emt 0:03:30]} Na6 {[%emt 0:01:10]} 47. Bd2 {[%emt 0:07:03]} Nb8 {[%emt 0:01:05]} 48. Kd6 {[%emt 0:00:54]} Ke4 {[%emt 0:00:08]} 49. Kc7 {[%emt 0:00:46]} Na6+ {[%emt 0:00:02]} 50. Kb6 {[%emt 0:00:37]} Nb8 {[%emt 0:00:04]} 51. Kb7 {[%emt 0:04:21]} Nd7 {[%emt 0:00:05]} 1-0

[Event "13th Senioren-Cup Tegernsee 2025"]
[Site "Rottach-Egern"]
[Date "2025.03.31"]
[Round "3.5"]
[White "Kolthoff, Siegmund"]
[Black "Nikolov, Jordan"]
[Result "1-0"]
[Annotator "NA RC"]
[ECO "A21"]
[WhiteElo "2121"]
[BlackElo "1968"]
[PlyCount "85"]
[EventDate "2025.03.25"]
[EventType "swiss"]
[EventCountry "GER"]
[SourceTitle "playchess.com"]
[Source "ChessBase"]
[SourceQuality "1"]
[TimeControl "9000+30"]

1. c4 {[%emt 0:20:05]} e5 {[%emt 0:20:19]} 2. Nc3 {[%emt 0:00:13]} Bb4 {[%emt 0:00:35]} 3. Nd5 {[%emt 0:04:10]} Be7 {[%emt 0:02:14]} 4. d3 {[%emt 0:04:15]} Nf6 {[%emt 0:01:43]} 5. Nxe7 {[%emt 0:00:34]} Qxe7 {[%emt 0:00:10]} 6. e3 {[%emt 0:02:38]} Nc6 {[%emt 0:02:40]} 7. Be2 {[%emt 0:00:51]} O-O {[%emt 0:00:42]} 8. Nf3 {[%emt 0:00:04]} d5 {[%emt 0:04:30]} 9. cxd5 {[%emt 0:00:56]} Nxd5 {[%emt 0:00:03]} 10. O-O {[%emt 0:03:50]} Be6 {[%emt 0:05:16]} 11. a3 {[%emt 0:01:35]} Rfd8 {[%emt 0:08:35]} 12. Qc2 {[%emt 0:02:40]} a5 {[%emt 0:10:05]} 13. b3 {[%emt 0:00:54]} f6 {[%emt 0:00:40]} 14. Bb2 {[%emt 0:03:35]} Rac8 {[%emt 0:06:44]} 15. Nd2 {[%emt 0:04:24]} Qf7 {[%emt 0:03:04]} 16. Ne4 {[%emt 0:03:40]} Nce7 {[%emt 0:08:38]} 17. Nc5 {[%emt 0:05:46]} b6 {[%emt 0:04:49]} 18. Nxe6 {[%emt 0:00:09]} Qxe6 {[%emt 0:00:02]} 19. Qc4 {[%emt 0:06:55]} c5 {[%emt 0:03:08]} 20. Bg4 {[%emt 0:07:39]} f5 {[%emt 0:02:03]} 21. Bh3 {[%emt 0:00:38]} Nc7 {[%emt 0:04:35]} 22. Bxe5 {[%emt 0:01:25]} b5 {[%emt 0:05:09]} 23. Qc3 {[%emt 0:06:22]} b4 {[%emt 0:01:33]} 24. Qc4 {[%emt 0:04:31]} Qxc4 {[%emt 0:01:15]} 25. dxc4 {[%emt 0:00:12]} Rd3 {[%emt 0:00:47]} 26. axb4 {[%emt 0:03:02]} cxb4 {[%emt 0:02:47]} 27. Rfd1 {[%emt 0:14:55]} Rxd1+ {[%emt 0:07:31]} 28. Rxd1 {[%emt 0:00:09]} Ne6 {[%emt 0:01:24]} 29. Rd7 {[%emt 0:04:52]} Rd8 {[%emt 0:00:53]} 30. Rxd8+ {[%emt 0:00:50]} Nxd8 {[%emt 0:00:02]} 31. Bd6 {[%emt 0:04:27]} Ndc6 {[%emt 0:02:39]} 32. g4 {[%emt 0:01:12]} a4 {[%emt 0:05:50]} 33. bxa4 {[%emt 0:00:56]} Nc8 {[%emt 0:05:59]} 34. Bc5 {[%emt 0:01:18]} b3 {[%emt 0:00:14]} 35. Bf1 {[%emt 0:01:52]} Ne5 {[%emt 0:03:00]} 36. Ba3 {[%emt 0:00:17]} fxg4 {[%emt 0:06:44]} 37. c5 {[%emt 0:02:33]} Kf7 {[%emt 0:05:22]} 38. Be2 {[%emt 0:05:56]} Ke7 {[%emt 0:09:39]} 39. Bb2 {[%emt 0:04:51]} Nf3+ {[%emt 0:07:16]} 40. Kg2 {[%emt 0:02:17]} Ne1+ {[%emt 0:01:29]} 41. Kg3 {[%emt 0:00:51]} h5 {[%emt 0:00:20]} 42. Bxg7 {[%emt 0:02:11]} Na7 {[%emt 0:00:21]} 43. Bc3 {[%emt 0:01:22]} 1-0

[Event "13th Senioren-Cup Tegernsee 2025"]
[Site "Rottach-Egern"]
[Date "2025.03.31"]
[Round "3.6"]
[White "Kirszenberg, Marc"]
[Black "Schrems, Hermann"]
[Result "1/2-1/2"]
[Annotator "RC"]
[ECO "D25"]
[WhiteElo "2066"]
[BlackElo "2114"]
[PlyCount "21"]
[EventDate "2025.03.25"]
[EventType "swiss"]
[EventCountry "GER"]
[SourceTitle "playchess.com"]
[Source "ChessBase"]
[SourceQuality "1"]
[TimeControl "9000+30"]

1. d4 {[%emt 0:21:31]} d5 {[%emt 0:20:06]} 2. Nf3 {[%emt 0:00:09]} Nf6 {[%emt 0:00:29]} 3. c4 {[%emt 0:00:04]} dxc4 {[%emt 0:00:50]} 4. e3 {[%emt 0:00:04]} Bg4 {[%emt 0:00:27]} 5. Bxc4 {[%emt 0:00:29]} e6 {[%emt 0:00:03]} 6. O-O {[%emt 0:00:51]} Nbd7 {[%emt 0:00:27]} 7. h3 {[%emt 0:01:44]} Bh5 {[%emt 0:00:08]} 8. Nc3 {[%emt 0:03:36]} Bb4 {[%emt 0:00:41]} 9. a3 {[%emt 0:01:45]} Bxc3 {[%emt 0:00:20]} 10. bxc3 {[%emt 0:01:22]} O-O {[%emt 0:00:12]} 11. Bd3 {[%emt 0:08:40]} 1/2-1/2

[Event "13th Senioren-Cup Tegernsee 2025"]
[Site "Rottach-Egern"]
[Date "2025.03.31"]
[Round "3.7"]
[White "Scheckenbach, Franz"]
[Black "Huhndorf, Arnold"]
[Result "1/2-1/2"]
[Annotator "RC"]
[ECO "B23"]
[WhiteElo "2045"]
[BlackElo "2094"]
[PlyCount "58"]
[EventDate "2025.03.25"]
[EventType "swiss"]
[EventCountry "GER"]
[SourceTitle "playchess.com"]
[Source "ChessBase"]
[SourceQuality "1"]
[TimeControl "9000+30"]

1. e4 {[%emt 0:20:04]} c5 {[%emt 0:20:09]} 2. Nc3 {[%emt 0:00:08]} Nc6 {[%emt 0:00:11]} 3. Bb5 {[%emt 0:00:13]} Nd4 {[%emt 0:00:33]} 4. Nf3 {[%emt 0:00:22]} a6 {[%emt 0:02:13]} 5. Bd3 {[%emt 0:00:23]} g6 {[%emt 0:01:57]} 6. O-O {[%emt 0:04:09]} Bg7 {[%emt 0:00:15]} 7. Re1 {[%emt 0:05:23]} Nh6 {[%emt 0:11:28]} 8. a4 {[%emt 0:05:37]} O-O {[%emt 0:06:12]} 9. Bc4 {[%emt 0:01:57]} d6 {[%emt 0:05:33]} 10. h3 {[%emt 0:01:23]} Be6 {[%emt 0:00:55]} 11. Nd5 {[%emt 0:05:29]} Nxf3+ {[%emt 0:06:06]} 12. Qxf3 {[%emt 0:02:12]} Bd7 {[%emt 0:00:44]} 13. a5 {[%emt 0:05:37]} Bc6 {[%emt 0:00:25]} 14. Nb6 {[%emt 0:01:56]} Rb8 {[%emt 0:01:29]} 15. d3 {[%emt 0:06:44]} Nf5 {[%emt 0:02:21]} 16. c3 {[%emt 0:02:34]} e6 {[%emt 0:01:28]} 17. Bf4 {[%emt 0:03:58]} Kh8 {[%emt 0:17:13]} 18. Qe2 {[%emt 0:07:43]} Ne7 {[%emt 0:00:31]} 19. Qe3 {[%emt 0:03:06]} Nc8 {[%emt 0:03:14]} 20. Nxc8 {[%emt 0:07:45]} Rxc8 {[%emt 0:00:05]} 21. Bh6 {[%emt 0:00:26]} d5 {[%emt 0:12:45]} 22. Bxg7+ {[%emt 0:00:24]} Kxg7 {[%emt 0:01:33]} 23. Bb3 {[%emt 0:03:59]} d4 {[%emt 0:03:04]} 24. cxd4 {[%emt 0:01:54]} Qxd4 {[%emt 0:00:35]} 25. Qxd4+ {[%emt 0:01:33]} cxd4 {[%emt 0:00:07]} 26. Kf1 {[%emt 0:10:47]} e5 {[%emt 0:02:13]} 27. Ke2 {[%emt 0:04:07]} f5 {[%emt 0:03:27]} 28. f3 {[%emt 0:00:13]} fxe4 {[%emt 0:00:34]} 29. fxe4 {[%emt 0:00:12]} Rf6 {[%emt 0:00:53]} 1/2-1/2

[Event "13th Senioren-Cup Tegernsee 2025"]
[Site "Rottach-Egern"]
[Date "2025.03.31"]
[Round "3.8"]
[White "Mueller, Matthias-Michael"]
[Black "Harsch, Martin"]
[Result "1-0"]
[Annotator "RC"]
[ECO "D02"]
[WhiteElo "2307"]
[BlackElo "1952"]
[PlyCount "183"]
[EventDate "2025.03.25"]
[EventType "swiss"]
[EventCountry "GER"]
[SourceTitle "playchess.com"]
[Source "ChessBase"]
[SourceQuality "1"]
[TimeControl "9000+30"]

1. d4 {[%emt 0:20:05]} d5 {[%emt 0:20:11]} 2. Nf3 {[%emt 0:00:17]} Nf6 {[%emt 0:00:13]} 3. Bf4 {[%emt 0:00:16]} c5 {[%emt 0:00:10]} 4. e3 {[%emt 0:00:19]} Nc6 {[%emt 0:00:06]} 5. c3 {[%emt 0:00:23]} Qb6 {[%emt 0:00:10]} 6. Qb3 {[%emt 0:00:11]} c4 {[%emt 0:00:10]} 7. Qc2 {[%emt 0:00:21]} Bf5 {[%emt 0:00:12]} 8. Qc1 {[%emt 0:00:10]} e6 {[%emt 0:00:10]} 9. Nbd2 {[%emt 0:00:10]} h6 {[%emt 0:03:10]} 10. Be2 {[%emt 0:01:34]} Be7 {[%emt 0:00:07]} 11. O-O {[%emt 0:00:36]} O-O {[%emt 0:00:03]} 12. b4 {[%emt 2:12:08]} cxb3 {[%emt 0:00:10]} 13. axb3 {[%emt 0:00:00]} Rfc8 {[%emt 0:09:11]} 14. Qb2 {[%emt 0:00:00]} Qd8 {[%emt 0:00:21]} 15. b4 {[%emt 0:00:00]} Ne4 {[%emt 0:08:11]} 16. Nxe4 {[%emt 0:00:00]} Bxe4 {[%emt 0:00:14]} 17. Rfc1 {[%emt 0:00:00]} Qb6 {[%emt 0:16:35]} 18. Nd2 {[%emt 0:00:00]} Bg6 {[%emt 0:02:00]} 19. Nb3 {[%emt 0:00:00]} f6 {[%emt 0:05:50]} 20. b5 {[%emt 0:00:00]} Nd8 {[%emt 0:00:20]} 21. c4 {[%emt 0:00:00]} dxc4 {[%emt 0:02:53]} 22. Bxc4 {[%emt 0:00:00]} Bf7 {[%emt 0:04:34]} 23. Bd3 {[%emt 0:00:00]} Be8 {[%emt 0:01:59]} 24. Nd2 {[%emt 0:00:00]} a6 {[%emt 0:01:57]} 25. Rcb1 {[%emt 0:00:00]} axb5 {[%emt 0:00:56]} 26. Rxa8 {[%emt 0:00:00]} Rxa8 {[%emt 0:00:11]} 27. Bxb5 {[%emt 0:00:00]} Bxb5 {[%emt 0:10:06]} 28. Qxb5 {[%emt 0:00:00]} Qxb5 {[%emt 0:00:10]} 29. Rxb5 {[%emt 0:00:00]} Rc8 {[%emt 0:02:46]} 30. g4 {[%emt 0:00:00]} Rc6 {[%emt 0:00:49]} 31. e4 {[%emt 0:00:00]} Bd6 {[%emt 0:03:12]} 32. Be3 {[%emt 0:00:00]} Kf7 {[%emt 0:16:21]} 33. Nb3 {[%emt 0:00:00]} Rc4 {[%emt 0:02:25]} 34. Na5 {[%emt 0:00:00]} Rb4 {[%emt 0:00:35]} 35. Rxb4 {[%emt 0:00:00]} Bxb4 {[%emt 0:00:06]} 36. Nb3 {[%emt 0:00:00]} Ke7 {[%emt 0:01:23]} 37. Kf1 {[%emt 0:00:00]} Kd6 {[%emt 0:00:53]} 38. Ke2 {[%emt 0:00:00]} Kc6 {[%emt 0:01:17]} 39. Kd3 {[%emt 0:00:00]} b5 {[%emt 0:00:10]} 40. d5+ {[%emt 0:00:00]} exd5 {[%emt 0:00:57]} 41. Nd4+ {[%emt 0:00:00]} Kd7 {[%emt 0:01:20]} 42. exd5 {[%emt 0:00:00]} Bd6 {[%emt 0:02:27]} 43. Nxb5 {[%emt 0:00:00]} Bxh2 {[%emt 0:01:06]} 44. Ke4 {[%emt 0:00:00]} Nf7 {[%emt 0:05:37]} 45. Bc5 {[%emt 0:00:00]} g6 {[%emt 0:01:53]} 46. f4 {[%emt 0:00:00]} Bg3 {[%emt 0:00:32]} 47. Bd4 {[%emt 0:00:00]} f5+ {[%emt 0:02:11]} 48. gxf5 {[%emt 0:00:00]} gxf5+ {[%emt 0:00:05]} 49. Kf3 {[%emt 0:00:00]} Bh4 {[%emt 0:00:21]} 50. Be5 {[%emt 0:00:00]} Be7 {[%emt 0:00:11]} 51. Nd4 {[%emt 0:00:00]} Bd6 {[%emt 0:00:34]} 52. Bg7 {[%emt 0:00:00]} Bxf4 {[%emt 0:01:37]} 53. Kxf4 {[%emt 0:00:00]} Kd6 {[%emt 0:00:05]} 54. Nxf5+ {[%emt 0:00:00]} Kxd5 {[%emt 0:00:03]} 55. Nh4 {[%emt 0:00:00]} Ke6 {[%emt 0:00:19]} 56. Nf3 {[%emt 0:00:00]} Ke7 {[%emt 0:01:55]} 57. Kf5 {[%emt 0:00:00]} Nd6+ {[%emt 0:10:38]} 58. Kg6 {[%emt 0:00:00]} Ke6 {[%emt 0:00:52]} 59. Bxh6 {[%emt 0:00:00]} Kd5 {[%emt 0:00:13]} 60. Bg7 {[%emt 0:00:00]} Ke6 {[%emt 0:00:49]} 61. Bf6 {[%emt 0:00:00]} Ne4 {[%emt 0:00:53]} 62. Bb2 {[%emt 0:00:00]} Nd6 {[%emt 0:00:20]} 63. Kg5 {[%emt 0:00:00]} Ne4+ {[%emt 0:00:48]} 64. Kf4 {[%emt 0:00:00]} Nd6 {[%emt 0:00:26]} 65. Be5 {[%emt 0:00:00]} Kd5 {[%emt 0:00:23]} 66. Ng5 {[%emt 0:00:00]} Nc4 {[%emt 0:00:31]} 67. Bc3 {[%emt 0:00:00]} Nd6 {[%emt 0:00:37]} 68. Bb4 {[%emt 0:00:00]} Nc4 {[%emt 0:00:27]} 69. Nf7 {[%emt 0:00:00]} Ke6 {[%emt 0:01:40]} 70. Nh6 {[%emt 0:00:00]} Kd5 {[%emt 0:00:17]} 71. Nf5 {[%emt 0:00:00]} Nb6 {[%emt 0:01:28]} 72. Ne3+ {[%emt 0:00:00]} Ke6 {[%emt 0:00:22]} 73. Ke4 {[%emt 0:00:00]} Nd7 {[%emt 0:00:16]} 74. Nc4 {[%emt 0:00:00]} Nf6+ {[%emt 0:00:11]} 75. Kd4 {[%emt 0:00:00]} Nd5 {[%emt 0:00:59]} 76. Bd2 {[%emt 0:00:00]} Ne7 {[%emt 0:00:51]} 77. Bf4 {[%emt 0:00:00]} Nd5 {[%emt 0:00:56]} 78. Be5 {[%emt 0:00:00]} Ne7 {[%emt 0:00:20]} 79. Ke4 {[%emt 0:00:00]} Nc6 {[%emt 0:00:51]} 80. Bb2 {[%emt 0:00:00]} Ne7 {[%emt 0:00:31]} 81. Ne5 {[%emt 0:00:00]} Nc6 {[%emt 0:00:10]} 82. Nxc6 {[%emt 0:00:00]} Kd7 {[%emt 0:01:17]} 83. Kd5 {[%emt 0:00:00]} Ke8 {[%emt 0:23:24]} 84. Ke6 {[%emt 0:00:00]} Kf8 {[%emt 0:00:00]} 85. Be5 {[%emt 0:00:00]} Ke8 {[%emt 0:00:00]} 86. Bf6 {[%emt 0:00:00]} Kf8 {[%emt 0:00:00]} 87. Ne7 {[%emt 0:00:00]} Ke8 {[%emt 0:00:00]} 88. Nf5 {[%emt 0:00:00]} Kf8 {[%emt 0:00:00]} 89. Be7+ {[%emt 0:00:00]} Kg8 {[%emt 0:00:00]} 90. Kf6 {[%emt 0:00:00]} Kh8 {[%emt 0:00:00]} 91. Kg6 {[%emt 0:00:00]} Kg8 {[%emt 0:00:00]} 92. Nh6+ {[%emt 0:00:00]} 1-0